Cogmind - Beta 14 @@@ ROGUE MODE // 2025.01.10 @ 23:37:53 Player: GDW Result: Destroyed by Y-45 Defender with Heavy Assault Rifle Performance ------------- Evolutions (1) 500 Regions Visited (4) 800 Robots Destroyed (44) 220 Value Destroyed (1004) 1004 Prototype IDs (2) 40 Alien Tech Used (0) 0 Bonus (13) 13 TOTAL SCORE: 2577 Bonus ------- High Alert Combat Kills 13 Cogmind --------- Core Integrity 0/400 Matter 280/300 Energy 197/265 System Corruption 0% Temperature Cool (43) Movement Core (650) Ox12 Location -9/Storage Parts ------- > --- POWER (1) -------- Improved Ion Engine > --- PROPULSION (3) --- (None) > --- UTILITY (3) ------ Large Storage Unit Terrain Scanner Improved Targeting Computer > --- WEAPON (2) ------- Guided EMP Blaster > --- INVENTORY (15) --- Ion Engine Light Ion Engine Heavy Ion Engine Light Treads Aluminum Leg Aluminum Leg Aluminum Leg High-capacity Storage Unit Weight Redist. System Transport Network Coupler Utility Shielding Utility Shielding Trap Extractor (0/4) Peak State ------------ > --- POWER ------------ Improved Ion Engine > --- PROPULSION ------- Aluminum Leg Aluminum Leg Improved Aluminum Leg > --- UTILITY ---------- Large Storage Unit Weight Redist. System Improved Targeting Computer > --- WEAPON ----------- Heavy Assault Rifle Katana > --- INVENTORY -------- Ion Engine Light Ion Engine Heavy Ion Engine Light Treads Aluminum Leg Aluminum Leg Aluminum Leg High-capacity Storage Unit Trap Scanner Transport Network Coupler Utility Shielding Utility Shielding Trap Extractor Guided EMP Blaster [Rating: 19] Favorites ----------- Power Improved Ion Engine Engine Improved Ion Engine Propulsion Light Treads Treads Light Treads Leg Aluminum Leg Utility Improved Targeting Computer Device Shield Generator Storage High-capacity Storage Unit Processor Improved Targeting Computer Protection Utility Shielding Weapon Assault Rifle Energy Gun Heavy EM Pulse Gun Ballistic Gun Assault Rifle Launcher Grenade Launcher Impact Weapon Hammer Slashing Weapon Katana Build | -11 -10 -10 -9 -9 ------- Run | Yrd Mat Min Mat Sto Slots Evolved 2 | . . . 2 . Power . | . . . . . Propulsion 1 | . . . 1 . Utility 1 | . . . 1 . Weapon . | . . . . . Parts Attached 46 | 6 1 3 18 18 Power 4 | 1 . . 1 2 Engine 4 | 1 . . 1 2 Core . | . . . . . Reactor . | . . . . . Propulsion 9 | 2 . . 3 4 Treads 6 | 2 . . 3 1 Leg 3 | . . . . 3 Wheel . | . . . . . Hover . | . . . . . Flight . | . . . . . Utility 13 | 1 1 . 7 4 Device 8 | . 1 . 5 2 Storage 3 | 1 . . 1 1 Processor 1 | . . . 1 . Hackware . | . . . . . Protection 1 | . . . . 1 Artifact . | . . . . . Weapon 20 | 2 . 3 7 8 Energy Gun 4 | . . . 2 2 Energy Cannon . | . . . . . Ballistic Gun 9 | 2 . 1 3 3 Ballistic Cannon . | . . . . . Launcher 2 | . . 1 . 1 Special Weapon . | . . . . . Impact Weapon 4 | . . 1 2 1 Slashing Weapon 1 | . . . . 1 Piercing Weapon . | . . . . . Special Melee Weapon . | . . . . . Unidentified Prototypes 2 | . . . . 2 Parts Lost 19 | . . . 1 18 Power 1 | . . . . 1 Propulsion 7 | . . . 1 6 Utility 5 | . . . . 5 Weapon 6 | . . . . 6 Highest Loss Streak 12 | . . . 1 12 To Critical Strikes . | . . . . . Average Slot Usage (%) 93 | . 87 100 94 88 Engine 11 | . 14 14 11 9 Treads 23 | . 28 28 27 12 Leg 4 | . . . . 16 Device 11 | . 2 14 15 6 Storage 11 | . 14 14 11 9 Processor 5 | . . . 6 11 Energy Gun 3 | . . . 5 5 Ballistic Gun 11 | . 28 17 9 5 Impact Weapon 6 | . . 10 6 4 Slashing Weapon 1 | . . . . 5 Peak Build Rating 19 | 6 7 7 17 19 Average Rating 11 | 3 6 7 12 14 On Entrance 7 | . 6 7 7 16 Naked Turns . | . . . . . Heaviest Build 55 | 12 13 14 55 54 Greatest Support 60 | 40 40 40 60 60 Greatest Overweight (x) 3 | 3 . . 1 1 Average Overweight (x) . | 2 . . . . Largest Inventory Capacity 20 | 8 8 8 20 20 Average Capacity 14 | 7 8 8 17 15 Most Carried 20 | 3 5 6 20 20 Average Carried 10 | 1 3 5 12 14 Final Capacity 20 | 8 8 8 20 15 Final Carried 20 | 3 4 6 20 13 Class Distribution -------------------- 66% | Mutant 33% | Scavenger-Mutant Dominant Class ---------------- Mutant | -10/Materials Mutant | -10/Mines Mutant | -9/Materials Scavenger-Mutant | -9/Storage Resources | -11 -10 -10 -9 -9 ----------- Run | Yrd Mat Min Mat Sto Matter Collected 1085 | 272 54 111 365 283 Remotely . | . . . . . Salvage Created 1384 | 55 101 124 397 707 Parts 95 | 1 9 13 21 51 Haulers Intercepted 2 | . . . 1 1 Recyclers Shooed . | . . . . . Parts Field Recycled . | . . . . . Retrieved Matter . | . . . . . Parts Self-Destructed . | . . . . . Prevented . | . . . . . Kills | -11 -10 -10 -9 -9 ------- Run | Yrd Mat Min Mat Sto Combat Hostiles Destroyed 34 | . 2 7 9 16 Melee 6 | . . 1 2 3 Guns 22 | . 2 2 6 12 AOE 3 | . . 3 . . Classes Destroyed 10 | 1 2 1 2 4 Worker 1 | . . . . 1 Builder 2 | . . . . 2 Hauler 2 | . . . 1 1 Recycler 1 | 1 . . . . Watcher 4 | . 1 . 3 . Swarmer 15 | . . 6 3 6 Grunt 12 | . 2 1 4 5 Brawler 1 | . . . . 1 Duelist 1 | . . . . 1 Sentry 5 | . . . 2 3 Best Kill Streak 7 | 1 3 3 3 7 Combat Bots Only 6 | . 2 3 3 6 Max Kills in Single Turn 2 | 1 1 2 1 1 Gunslinging . | . . . . . Exploded 2 | . . 2 . . Melee 1 | . . 1 1 1 Uniques/NPCs Destroyed . | . . . . . Combat | -11 -10 -10 -9 -9 -------- Run | Yrd Mat Min Mat Sto Hostile Shots Fired 289 | . 9 32 74 174 Missed 74 | . 1 8 18 47 Damage Taken 2339 | . 88 239 442 1570 Core 487 | . 32 46 59 350 Absorbed by Shields 201 | . . . 171 30 Core Remaining (%) 84 | 100 . 68 . . Volleys Fired 123 | 2 10 15 44 52 Largest 2 | 2 2 2 2 2 Hottest 68 | 40 40 50 63 68 Shots Fired 193 | 4 20 17 78 74 Gun 190 | 4 20 15 78 73 Cannon . | . . . . . Launcher 3 | . . 2 . 1 Special . | . . . . . Kinetic 144 | 4 20 15 70 35 Thermal . | . . . . . Explosive 2 | . . 2 . . Electromagnetic 47 | . . . 8 39 Robot Hit Streak 15 | 2 6 2 11 15 Robot Miss Streak 4 | 1 1 3 4 3 Penetration Max . | . . . . . Secondary Targets 3 | . 1 . 1 1 Max Gunslinging Chain 1 | . 1 . 1 1 Shots Hit Robots 171 | 3 14 11 67 76 Core Hits 55 | 2 4 7 15 27 Critical Kills 2 | . . . 1 1 Critical Parts Destroyed 5 | . . 1 4 . Critical Strikes 9 | . . 1 5 3 Destroy 1 | . . . 1 . Corrupt 1 | . . . . 1 Smash 6 | . . 1 4 1 Sever 1 | . . . . 1 Melee Attacks 84 | . . 5 26 53 Impact 48 | . . 5 26 17 Slashing 36 | . . . . 36 Piercing . | . . . . . Sneak Attacks 3 | . . . . 3 Combat Hostiles . | . . . . . Follow-up Attacks 3 | . . . . 3 Damage Inflicted 2913 | 34 174 264 981 1460 Guns 1787 | 34 174 87 700 792 Cannons . | . . . . . Explosions 86 | . . 72 . 14 Melee 1040 | . . 105 281 654 Ramming . | . . . . . Kinetic 1311 | 34 174 87 622 394 Thermal . | . . . . . Explosive 72 | . . 72 . . Electromagnetic 490 | . . . 78 412 Impact 616 | . . 105 281 230 Slashing 424 | . . . . 424 Piercing . | . . . . . Highest Corruption . | . . . . . Average Corruption . | . . . . . Corruption Purged . | . . . . . Corruption Blocked . | . . . . . Overload Shots . | . . . . . Overflow Damage 148 | . . 23 99 26 Projectiles . | . . . . . Explosions . | . . . . . Melee 148 | . . 23 99 26 Knockbacks 3 | . . . 1 2 Impact 3 | . . . 1 2 Kinetic . | . . . . . Secondary . | . . . . . Self-Inflicted Damage 17 | . . 17 . . Shots 1 | . . 1 . . Rammed . | . . . . . Targets Rammed . | . . . . . Kicked . | . . . . . Crushed . | . . . . . Highest Temperature 54 | . . . 4 54 Average Temperature 18 | . . . 3 19 Received Heat Transfer 612 | . 48 36 124 404 Siege Activations . | . . . . . Robots Corrupted 5 | . . 1 3 1 Combat Hostiles 3 | . . 1 1 1 Parts Fried 7 | . . . 7 . Impact Corruptions 12 | . . 1 7 4 Robots Melted . | . . . . . Combat Hostiles . | . . . . . Parts Melted . | . . . . . Heat Transferred . | . . . . . Parts Sabotaged . | . . . . . Parts Stolen . | . . . . . Parts Stripped . | . . . . . Power Chain Reactions . | . . . . . Alert | -11 -10 -10 -9 -9 ------- Run | Yrd Mat Min Mat Sto Peak Influence 450 | 5 87 213 171 450 Initial 40 | . 3 33 16 40 Average 141 | 1 39 124 77 296 Maximum Alert Level 2 | . . 1 . 2 Low Security (%) 72 | 100 100 69 100 23 Level 1 24 | . . 30 . 66 Level 2 2 | . . . . 9 Level 3 . | . . . . . Level 4 . | . . . . . Level 5 . | . . . . . High Security . | . . . . . Max Security . | . . . . . Squads Dispatched 7 | . 2 . 1 4 Investigation . | . . . . . Extermination . | . . . . . Reinforcement 4 | . 2 . 1 1 Assault . | . . . . . Garrison 3 | . . . . 3 Intercept . | . . . . . Searches Triggered . | . . . . . Construction Impeded . | . . . . . Haulers Reinforced . | . . . . . Active Scanning Responses . | . . . . . Cargo Convoy Interrupts . | . . . . . Stealth | -11 -10 -10 -9 -9 --------- Run | Yrd Mat Min Mat Sto Distress Signals 3 | . . . 1 2 Communications Jammed . | . . . . . Distress Signals . | . . . . . Times Spotted 63 | . 5 10 18 30 Peak Tracking Total 8 | . 3 3 3 8 Tactical Retreats 5 | . . 1 1 3 Traps | -11 -10 -10 -9 -9 ------- Run | Yrd Mat Min Mat Sto Traps Triggered . | . . . . . Indirectly . | . . . . . Trap Hack Attempts . | . . . . . Triggered . | . . . . . Disarmed . | . . . . . Reprogrammed . | . . . . . Reused . | . . . . . Traps Extracted . | . . . . . Installed . | . . . . . Triggered . | . . . . . Machines | -11 -10 -10 -9 -9 ---------- Run | Yrd Mat Min Mat Sto Machines Disabled 4 | . . . . 4 Max in Single Turn 1 | . . . . 1 Machines Repaired . | . . . . . Machines Dismantled . | . . . . . Machines Sabotaged . | . . . . . Overloaded Fab Kills . | . . . . . Hacking | -11 -10 -10 -9 -9 --------- Run | Yrd Mat Min Mat Sto Machines Accessed 4 | . 1 . 1 2 Terminals 4 | . 1 . 1 2 Fabricators . | . . . . . Repair Stations . | . . . . . Recycling Units . | . . . . . Scanalyzers . | . . . . . Garrison Access . | . . . . . Total Hacks 11 | . 2 . 3 6 Successful 7 | . 1 . 2 4 Failed 4 | . 1 . 1 2 Catastrophic 1 | . . . . 1 Database Lockouts . | . . . . . Manual . | . . . . . Terminals 11 | . 2 . 3 6 Fabricators . | . . . . . Repair Stations . | . . . . . Recycling Units . | . . . . . Scanalyzers . | . . . . . Garrison Access . | . . . . . Terminal Hacks 7 | . 1 . 2 4 Record 3 | . . . 2 1 Open Door 1 | . . . . 1 Branch Access Points 1 | . 1 . . . Locate Traps 1 | . . . . 1 Zone Layout 1 | . . . . 1 Fabricator Hacks . | . . . . . Repair Station Hacks . | . . . . . Recycling Unit Hacks . | . . . . . Scanalyzer . | . . . . . Garrison Access Hacks . | . . . . . Unauthorized Hacks . | . . . . . Terminals . | . . . . . Fabricators . | . . . . . Repair Stations . | . . . . . Recycling Units . | . . . . . Scanalyzers . | . . . . . Garrison Access . | . . . . . Data Cores Recovered . | . . . . . Used . | . . . . . Hacking Detections 4 | . 1 . 1 2 Full Trace Events 1 | . . . . 1 Feedback Events . | . . . . . Feedback Blocked . | . . . . . Robot Schematics Acquired . | . . . . . Robots Built . | . . . . . Authchips . | . . . . . Time . | . . . . . Total Robot Build Rating . | . . . . . Part Schematics Acquired . | . . . . . Parts Built . | . . . . . Authchips . | . . . . . Time . | . . . . . Total Part Build Rating . | . . . . . Parts Repaired . | . . . . . Time . | . . . . . Parts Recycled . | . . . . . Recycled Matter . | . . . . . Retrieved Matter . | . . . . . Retrieved Components . | . . . . . Parts Scanalyzed . | . . . . . Part Schematics Acquired . | . . . . . Parts Damaged . | . . . . . Bothacking | -11 -10 -10 -9 -9 ------------ Run | Yrd Mat Min Mat Sto Used RIF Installer . | . . . . . Robots Hacked . | . . . . . Non-combat . | . . . . . Combat . | . . . . . Robot Hacks Applied . | . . . . . Relay Couplers Released . | . . . . . Fabnet Peak Effective % . | . . . . . Robots Rewired . | . . . . . Allies Hacked . | . . . . . Hacks Repelled . | . . . . . Allies | -11 -10 -10 -9 -9 -------- Run | Yrd Mat Min Mat Sto Total Allies . | . . . . . Largest Group . | . . . . . Highest-Rated Group . | . . . . . Highest-Rated Ally . | . . . . . Total Orders . | . . . . . Ally Attacks . | . . . . . Total Damage . | . . . . . Kills . | . . . . . Allies Corrupted . | . . . . . Allies Melted . | . . . . . Intel | -11 -10 -10 -9 -9 ------- Run | Yrd Mat Min Mat Sto Robot Analysis Total . | . . . . . Derelict Logs Recovered 1 | . . 1 . . Drone Launches . | . . . . . Drone Recoveries . | . . . . . Exploration | -11 -10 -10 -9 -9 ------------- Run | Yrd Mat Min Mat Sto Turns Passed 2624 | 98 174 534 1101 717 Spaces Moved 1167 | 44 88 292 469 274 Core 40 | 35 . . . 5 Treads 954 | 9 88 292 469 96 Legs 173 | . . . . 173 Wheels . | . . . . . Hover . | . . . . . Flight . | . . . . . Fastest Speed 50 | 50 160 160 160 50 Average Speed 160 | 175 160 160 176 133 Slowest Speed 240 | 200 160 160 240 240 Overloaded Moves . | . . . . . Propulsion Burnouts . | . . . . . Robots Hopped . | . . . . . Cave-ins Triggered . | . . . . . Exploration Rate (%) 26 | 4 18 43 40 28 Regions Visited 4 Branch Regions 2 Pre-discovered Areas . | . . . . . Known Exits Taken 1 | . 1 . . . Unknown Exits Taken 3 | 1 . 1 1 . Scrap Searched 1 | . . 1 . . Spaces Dug 25 | . . . 6 19 Terrain Destroyed 35 | . . 10 6 19 Melee 25 | . . . 6 19 Projectile . | . . . . . AOE 10 | . . 10 . . Terrain Rammed . | . . . . . Walls Destroyed . | . . . . . Machines Disabled . | . . . . . Actions | -11 -10 -10 -9 -9 --------- Run | Yrd Mat Min Mat Sto Total 1580 | 60 101 332 616 471 Wait 98 | . . 16 31 51 Move 1163 | 43 87 291 468 274 Hop . | . . . . . Pick Up 45 | 7 2 2 18 16 Fast Attach 16 | 4 1 . 4 7 Attach 6 | 2 . . . 4 Detach 2 | . . . 1 1 Swap 24 | . . 3 14 7 Drop 22 | 2 1 . 10 9 Fire 123 | 2 10 15 44 52 Melee 81 | . . 5 26 50 Ram . | . . . . . Kick . | . . . . . Crush . | . . . . . Escape Stasis . | . . . . . Rewire . | . . . . . Trap . | . . . . . Miscellaneous . | . . . . . Route ------- -11/Scrapyard -10/Materials (discovered 2 exits: *Min x2) -10/Mines (discovered 2 exits: *Mat x2) -9/Materials (discovered 2 exits: *Min / *Sto) -9/Storage History --------- Turn | Location | Event 14 | -11/Scrapyard | Discovered new exit (range 15) 99 | -11/Scrapyard | Entered Materials 163 | -10/Materials | Identified exit to Mines 273 | -10/Materials | Entered Mines 307 | -10/Mines | Build established: Mutant 327 | -10/Mines | Met a Derelict bent on vengeance 448 | -10/Mines | Discovered new exit (range 13) 545 | -10/Mines | Discovered new exit (range 11) 807 | -10/Mines | Entered Materials 807 | -9/Materials | Evolved 2 slots: Propulsion x1, Utility x1 808 | -9/Materials | Identified exit to Mines 1900 | -9/Materials | Discovered new exit (range 5) 1908 | -9/Materials | Entered Storage 1933 | -9/Storage | Build established: Scavenger-Mutant 2060 | -9/Storage | Garrison activated, responded to threat 2191 | -9/Storage | Core integrity fell below 50% 2227 | -9/Storage | Lost 12 parts (1p3n4u4w) 2235 | -9/Storage | Core integrity fell below 20% 2625 | -9/Storage | Destroyed by Y-45 Defender with Heavy Assault Rifle Last Messages --------------- 02519_ U-05 Engineer destroyed. 02522_ U-05 Engineer builds a Wall. 02532_ Sneak attack on U-05 Engineer. 02532_ U-05 Engineer destroyed. 02534_ Acquired 10 matter. 02537_ Acquired Terrain Scanner. 02539_ K-01 Serf collects debris. 02540_ Dropped Trap Scanner. 02541_ Acquired Weight Redist. System. 02542_ Acquired 10 matter. 02543_ K-01 Serf collects debris. 02546_ K-01 Serf cleans the Storage Shell. 02606_ Imp. Aluminum Leg destroyed. 02613_ Aluminum Leg destroyed. 02619_ Katana destroyed. 02620_ Hvy. EM Pulse Gun destroyed. 02621_ Dropped Prototype Launcher. 02621_ Acquired Prototype Launcher. 02621_ Identified Gui. EMP Blaster. 02622_ Y-45 Defender misfires. Map ----- +----------------------------------------------------+ | ""######???# #???????????????????????????????? | | ########???# #???????????????????????????????? | | #??## ##???# #???????????????????????????????? | | #??##/##???# #???????????????????????????????? | | #??#T=##???# #???????????????????????????????? | | ######+###### #???????????????????????????????? | | **% **! #???????????????????????????????? | | ############# +?????? ????????????????????????? | | # #?# #???????????????????????????????? | | # """"" ### #???????????????????????????????? | | # """"" ## #??#????????????????????????????? | | # """"" ### ##??????????????????????????????? | | # ## #####??????????????????????????? | | # [ ## ??????#? ??????????????????? | | # ## ??????? /????????????????????? | | # #?? ? ?????? #????????????????????? | | ####/######?? ??#?#???? #????????????????????? | | ^ !!####+#####?????? #???? ???????????????? | | !%# *% ! #?????? #????????????????????? | | |# """ #?????? #??#?????????????????? | | #####+##### """"?" #??#### #????????????????????? | | ???????? ## "????" #??# +????????????????????? | | ????? ?? ?# "??? " #??# # ???????#???????????? | | ?????"?"#?# "?"""" #### #????#???????????????? | | ??????????# """ + ##???????????????????? | | ????? ????# ######@ #?? ????????????????? | | ??????????# ##???# Y ??????????????? | | ???????? ###########????# aY### #?????????????? | | ?#?????????#??????????#?##Y##????##?????????????? | | ????????#????##????????#?? ????????????????????? | | ????????#????????##?????? ????????????????????? | | ??????????#?#?????????????"""???????????????????? | | ????????#??#????#?????????"""???????????????????? | | ??????????????????????????""" ??????????????????? | | ???????????????????????????"" ??????????????????? | | ????????????????????????????????????????????????? | | ????????????????#???????????????????????????????? | | ????????????????????????????????????????????????? | | ????????????????????????????????????????????????? | | ????????????????????????????????????????????????? | | ????????????????????????????????????????????????? | | ????????????????????????????????????????????????? | | ????????????????????????????????????????????????? | | ????????????????????????????????????????????????? | | ????????????????????????????????????????????????? | | ????????????????????????????????????????????????? | | ????????????????????????????????????????????????? | | ????????????????????????????????????????????????? | | ????????????????????????????????????????????????? | | ????????????????????????????????????????????????? | +----------------------------------------------------+ Best States ------------- Heat Dissipation 28 Energy Generation 12 Energy Capacity 265 Matter Stores 300 Matter Capacity 300 Sight Range 16 Robot Scan Range 14 Terrain Scan Range 14 Terrain Scan Density 10 Additional Mass Support 6 Utility Shielding 33 Evasion (%) 55 Targeting Accuracy 6 Recoil Reduction 3 Item Schematics ----------------- None Robot Schematics ------------------ None Fabricated ------------ Nothing Alien Tech Used ----------------- None Achievements -------------- None Challenges ------------ None Game ------ Seed MultitargetingRingFlakker Manual? 0 Play Time 01:02:31 Cumulative 9.3 hours Start 2025.01.10 @ 22:30:01 End 2025.01.10 @ 23:37:53 Sessions 1 Manual Loads 0 Difficulty Rogue Special Mode None Game No. 8 Rogue 8 Adventurer 0 Explorer 0 Win Type - Total 0 Types 0/0/0/0/0/0/0/0/0 Lore% 4 Gallery% 14 Achievement% 12 Wizard Run 0 Options --------- Layout 2 ASCII 0 Keyboard 0 Movement Mouse Keybinds 0 Fullscreen 1 Font 24/Smallcaps Map View 50x44 Zoom Use 0% Tactical HUD 1 Map Filters NONE Filters NONE Steam 1 RUN: 4629f98e-edf5-4cb1-ae1f-ef3ec15c3829